bitfinex/quotes_SOLUSD_20260214
["timestamp","ask_amount","ask_price","bid_price","bid_amount"]
[1771058361228,1.39259809,86.184,86.15,17.32317216]
[1771058361645,1.39259809,86.184,86.141,0.49725186]
[1771058361844,40.61031501,86.185,86.111,0.49693017]
[1771058361845,1.39259809,86.169,86.111,0.49693017]
[1771058362151,1.39259809,86.167,86.111,0.49693017]
[1771058362343,1.39259809,86.165,86.111,0.49693017]
[1771058362746,1.39259809,86.163,86.111,0.49693017]
[1771058363545,1.39259809,86.159,86.111,0.49693017]
[1771058363746,1.39259809,86.159,86.1,17.32317216]
[1771058364045,1.39259809,86.163,86.121,0.49632588]
[1771058364548,1.39259809,86.161,86.121,0.49632588]
[1771058365247,1.39259809,86.159,86.121,0.49632588]
[1771058365654,1.39259809,86.157,86.121,0.49632588]
[1771058366341,1.39259809,86.155,86.121,0.49632588]
[1771058367156,1.39259809,86.153,86.111,0.49541152]
[1771058368366,1.39259809,86.149,86.093,0.49511688]
[1771058368560,1.39259809,86.139,86.081,0.49511688]
[1771058368943,1.39259809,86.139,86.101,0.49481008]
[1771058369281,40.62492745,86.154,86.121,0.49481008]
[1771058369282,11.60739158,86.152,86.121,0.49481008]
[1771058369568,40.62587054,86.152,86.121,0.49481008]
[1771058369869,1.39259809,86.151,86.121,0.49481008]
[1771058370359,1.39259809,86.149,86.121,0.49481008]
[1771058370562,1.39259809,86.149,86.068,4.61729252]
[1771058370563,1.39259809,86.147,86.069,0.4944994]
[1771058370766,40.62775687,86.148,86.011,46.50565774]
[1771058370767,1.39259809,86.145,86.101,0.4944994]
[1771058371460,75.84,86.144,86.111,0.49390963]
[1771058372657,1.36349135,86.142,86.111,0.49390963]
[1771058373962,11.60887382,86.141,86.111,0.49390963]
[1771058376144,1.36349135,86.14,86.111,0.49390963]
[1771058376843,1.36349135,86.14,86.103,11.61395804]
[1771058376844,1.36349135,86.14,86.103,0.4925647]
[1771058378065,1.36349135,86.14,86.095,0.49202438]
[1771058378267,1.36349135,86.138,86.096,0.49202438]
[1771058378463,1.36349135,86.129,86.064,0.49202438]
[1771058378645,1.36349135,86.127,86.08,17.81519654]
[1771058378848,1.36349135,86.127,86.081,0.49202438]
[1771058379349,1.36349135,86.125,86.081,0.49202438]
[1771058379657,1.36349135,86.125,86.071,0.49176378]
[1771058379966,1.32954886,86.123,86.071,0.49176378]
[1771058380462,1.32954886,86.12,86.071,0.49176378]
[1771058380664,1.32954886,86.119,86.071,0.49176378]
[1771058381050,1.32954886,86.109,86.063,19.5019054]
[1771058381252,1.32954886,86.109,86.063,19.9929031]
[1771058381452,1.32954886,86.107,86.063,19.9929031]
[1771058381657,1.32954886,86.099,86.055,0.4909977]
[1771058381859,1.32954886,86.099,86.05,5.83324911]
[1771058382149,5.83324911,86.1,86.05,5.83324911]
[1771058382150,1.32954886,86.097,86.05,5.83324911]
[1771058382353,1.32954886,86.095,86.051,0.49075382]
[1771058383260,1.32954886,86.095,86.052,0.49050944]
[1771058383447,1.32954886,86.095,86.061,0.49050944]
[1771058383650,1.32954886,86.095,86.051,11.62101544]
[1771058383651,8.87517309,86.096,86.081,0.49050944]
[1771058383862,11.61359254,86.106,86.081,0.49050944]
[1771058384069,76.0,86.127,86.101,0.49027601]
[1771058384462,76.0,86.131,86.11,5.83324911]
[1771058384789,1.32954886,86.155,86.12,6.32352512]
[1771058384956,76.02,86.148,86.12,6.32352512]
[1771058385157,76.02,86.148,86.121,0.49001403]
[1771058385772,1.32954886,86.147,86.111,0.49001403]
[1771058385962,1.32954886,86.147,86.091,0.48976058]
[1771058386156,1.32954886,86.139,86.091,0.48976058]
[1771058386850,1.32954886,86.137,86.091,0.48976058]
[1771058387057,1.32954886,86.129,86.08,17.35547352]
[1771058387465,1.32954886,86.129,86.081,0.48950096]
[1771058387657,1.32954886,86.129,86.091,0.48950096]
[1771058387864,1.32954886,86.129,86.101,0.48925692]
[1771058388353,76.06,86.128,86.101,0.48925692]
[1771058388757,76.06,86.129,86.11,17.35547352]
[1771058388950,76.06,86.129,86.079,40.66028319]
[1771058388951,1.32954886,86.127,86.081,0.4890122]
[1771058389154,1.32954886,86.127,86.09,17.84448572]
[1771058389369,1.32954886,86.127,86.081,0.4890122]
[1771058390275,1.32954886,86.125,86.081,0.4890122]
[1771058391051,1.32954886,86.123,86.081,0.4890122]
[1771058391255,1.32954886,86.123,86.08,17.35547352]
[1771058393391,1.32954886,86.121,86.081,0.48809337]
[1771058395677,1.32954886,86.119,86.08,17.35547352]
[1771058396663,40.64096608,86.12,86.07,17.84312384]
[1771058396664,1.32954886,86.117,86.07,17.84312384]
[1771058396981,1.32954886,86.109,86.061,0.48743174]
[1771058397371,1.32954886,86.099,86.053,0.48722133]
[1771058397772,1.32954886,86.097,86.053,0.48722133]
[1771058398075,1.32954886,86.097,86.05,17.35547352]
[1771058398373,1.32954886,86.095,86.048,0.4870154]
[1771058398676,1.32954886,86.095,86.05,17.84248892]
[1771058398867,1.32954886,86.095,86.051,0.4870154]
[1771058399254,76.18,86.094,86.051,0.4870154]
[1771058399454,1.32954886,86.093,86.051,0.4870154]
[1771058399673,1.32954886,86.091,86.051,0.4870154]
[1771058400472,1.32954886,86.091,86.04,11.62243615]
[1771058400473,1.32954886,86.089,86.041,0.48661385]
[1771058400963,1.32954886,86.079,86.041,0.48661385]
[1771058401155,76.2,86.09,86.041,0.48661385]
[1771058401156,1.31461472,86.077,86.041,0.48661385]
[1771058401783,76.2,86.078,86.033,0.48622719]
[1771058401784,1.31461472,86.075,86.033,0.48622719]
[1771058401981,40.66174078,86.076,86.025,0.48622719]
[1771058401982,1.31461472,86.069,86.025,0.48622719]
[1771058402359,1.31461472,86.067,86.016,0.48603964]
[1771058402575,1.31461472,86.059,86.01,17.84151316]
[1771058402975,1.31461472,86.059,86.012,0.48585324]
[1771058403171,1.31461472,86.059,86.011,11.62641987]
[1771058403376,1.31461472,86.059,86.012,0.48585324]
[1771058403571,1.31461472,86.075,86.031,0.48585324]
[1771058403782,12.93265986,86.073,86.031,11.62361803]
[1771058403982,1.31461472,86.072,86.032,0.48585324]
[1771058404178,0.11746,86.05,86.032,0.48585324]
[1771058405067,0.11746,86.05,86.024,0.48549337]
[1771058405068,1.43207472,86.05,86.024,0.48549337]
[1771058405382,0.11746,86.05,86.024,0.48549337]
[1771058405982,1.43207472,86.05,86.016,0.48530958]
[1771058407292,1.31461472,86.048,86.016,0.48530958]
[1771058408704,1.31461472,86.048,86.007,0.48495134]
[1771058408894,1.31461472,86.048,86.01,17.84026256]
[1771058409094,1.31461472,86.048,86.011,0.48478904]
[1771058409306,1.31461472,86.046,86.011,0.48478904]
[1771058409623,1.31461472,86.046,86.012,11.6262847]
[1771058409794,1.31461472,86.039,86.005,11.62723097]
[1771058409995,17.35547352,86.04,86.0,17.55547352]
[1771058409996,1.31461472,86.038,86.001,0.48461835]
[1771058410221,17.35547352,86.04,86.002,0.48461835]
[1771058410514,1.31461472,86.036,86.002,0.48461835]
[1771058411093,87.90155566,86.047,86.011,0.48445027]
[1771058411294,89.21617038,86.047,86.011,0.48445027]
[1771058411493,1.31461472,86.046,86.011,0.48445027]
[1771058411716,0.11746,86.05,86.021,0.48445027]
[1771058411910,88.01863151,86.05,86.031,0.48445027]
[1771058412123,0.11746,86.05,86.031,0.48445027]
[1771058413504,0.11746,86.05,86.031,11.62366658]
[1771058413707,76.3,86.08,86.051,0.36664802]
[1771058414220,1.31461472,86.078,86.051,0.36664802]
[1771058414911,11.61723533,86.079,86.051,0.36664802]
[1771058415215,11.61723533,86.079,86.06,17.3956612]
[1771058415408,11.61723533,86.079,86.051,0.36664802]
[1771058415619,1.31461472,86.076,86.05,17.3956612]
[1771058415801,1.31461472,86.076,86.032,0.36649368]
[1771058416297,1.31461472,86.076,86.04,17.3956612]
[1771058416501,1.31461472,86.069,86.032,0.36649368]
[1771058417318,1.31461472,86.067,86.032,0.36649368]
[1771058417521,76.34,86.066,86.041,0.36635259]
[1771058417708,11.61912507,86.065,86.041,0.36635259]
[1771058419420,1.31461472,86.064,86.033,11.98965503]
[1771058419626,11.61912507,86.065,86.033,11.98965503]
[1771058419627,1.31461472,86.062,86.033,0.36620822]
[1771058419819,11.61777519,86.075,86.035,0.36620822]
[1771058420020,76.36,86.074,86.041,0.36613266]
[1771058420321,1.31461472,86.073,86.041,0.36613266]
[1771058420521,1.31461472,86.073,86.032,0.36613266]
[1771058421023,1.31461472,86.069,86.034,0.36606298]
[1771058421525,1.31461472,86.069,86.04,17.3956612]
[1771058421718,1.31461472,86.067,86.04,17.3956612]
[1771058421913,1.31461472,86.067,86.034,0.36606298]
[1771058422405,11.61872008,86.068,86.034,0.36606298]
[1771058422406,1.31461472,86.065,86.034,0.36606298]
[1771058422602,1.31461472,86.065,86.03,17.3956612]
[1771058423013,1.31461472,86.065,86.03,17.76158895]
[1771058423215,1.31461472,86.065,86.03,29.38540455]
[1771058424026,1.31461472,86.063,86.03,17.3956612]
[1771058424219,1.31461472,86.059,86.022,0.36586056]
[1771058425511,1.31461472,86.057,86.022,0.36586056]
[1771058426613,1.31461472,86.055,86.02,17.3956612]
[1771058426925,1.31461472,86.055,86.01,17.3956612]
[1771058427229,1.31461472,86.053,86.011,0.36565049]
[1771058427436,1.31461472,86.048,86.02,17.3956612]
[1771058428222,1.31461472,86.048,86.02,17.76124815]
[1771058428425,1.31461472,86.048,86.021,0.36558695]
[1771058428618,1.31461472,86.039,86.011,0.36558695]
[1771058429417,1.31461472,86.037,86.011,0.36558695]
[1771058430331,12.93765623,86.036,86.011,0.36558695]
[1771058430726,1.31461472,86.035,86.011,0.36558695]
[1771058431408,1.31461472,86.035,86.0,17.5956612]
[1771058431631,1.31461472,86.035,86.0,0.2]
[1771058431813,1.39408649,86.029,86.0,17.5956612]
[1771058432015,11.62304151,86.036,86.011,0.35636992]
[1771058432425,11.62304151,86.036,86.02,17.3956612]
[1771058433016,11.62304151,86.036,86.011,0.35636992]
[1771058434213,13.017128,86.036,86.011,0.35636992]
[1771058435232,1.39408649,86.035,86.011,0.35636992]
[1771058435545,1.39408649,86.035,86.01,17.3956612]
[1771058435721,13.0173982,86.034,86.01,17.3956612]
[1771058436531,11.62331171,86.034,86.011,0.34476352]
[1771058436925,76.6,86.042,86.021,0.34193946]
[1771058437125,11.62236608,86.041,86.021,0.34193946]
[1771058437642,76.6,86.042,86.021,0.34193946]
[1771058437643,11.62121592,86.05,86.021,0.34193946]
[1771058437817,76.62,86.06,86.031,0.34193946]
[1771058438017,40.66599276,86.067,86.041,0.33914662]
[1771058438626,40.66599276,86.067,86.04,17.3956612]
[1771058438627,11.61825645,86.072,86.051,0.33914662]
[1771058439735,11.61759984,86.077,86.061,0.33364327]
[1771058440041,76.66,86.076,86.054,0.33094253]
[1771058440921,11.61791017,86.074,86.05,17.3956612]
[1771058441125,1.30186798,86.073,86.05,17.3956612]
[1771058441536,1.30186798,86.073,86.043,11.62207264]
[1771058441722,1.30186798,86.073,86.04,17.3956612]
[1771058441923,11.61791017,86.074,86.033,0.32826883]
[1771058441924,1.30186798,86.069,86.033,0.32826883]
[1771058442742,1.30186798,86.069,86.032,11.6234714]
[1771058442743,1.30186798,86.069,86.03,17.3956612]
[1771058443127,1.30186798,86.067,86.031,0.32303249]
[1771058443440,1.30186798,86.059,86.024,0.32303249]
[1771058443637,1.30186798,86.057,86.024,0.32303249]
[1771058444442,1.30186798,86.057,86.02,17.3956612]
[1771058444443,1.30186798,86.049,86.016,0.32045203]
[1771058444647,1.30186798,86.047,86.016,0.32045203]
[1771058444942,1.30186798,86.045,86.008,0.31791889]
[1771058445143,1.30186798,86.045,86.01,17.3956612]
[1771058445521,11.61885507,86.067,86.03,17.3956612]
[1771058445728,11.61885507,86.067,86.031,0.31791889]
[1771058445729,1.30186798,86.064,86.031,0.31791889]
[1771058446336,76.72,86.063,86.031,0.31791889]
[1771058446534,1.30186798,86.062,86.031,0.31791889]
[1771058446730,76.72,86.063,86.04,17.3956612]
[1771058446932,78.02186798,86.062,86.04,17.3956612]
[1771058447139,1.30186798,86.061,86.034,0.31538095]
[1771058448754,1.30186798,86.076,86.047,0.31042633]
[1771058449223,1.30186798,86.076,86.04,17.70365001]
[1771058449826,17.3956612,86.07,86.04,17.70365001]
[1771058450048,1.30186798,86.069,86.034,11.62318711]
[1771058450250,1.30186798,86.069,86.03,17.7012408]
[1771058450430,1.30186798,86.067,86.031,11.62371703]
[1771058450630,1.30186798,86.067,86.031,11.92929663]
[1771058450839,1.30186798,86.065,86.031,11.92929663]
[1771058451335,78.10186798,86.064,86.032,0.30319938]
[1771058451547,1.30186798,86.063,86.032,0.30319938]
[1771058452535,11.6195301,86.062,86.034,0.30084327]
[1771058452738,1.30186798,86.061,86.034,0.30084327]
[1771058453255,1.30186798,86.061,86.04,17.3956612]
[1771058454172,1.30186798,86.061,86.011,47.96]
[1771058454173,1.30186798,86.059,86.017,0.29621396]
[1771058454337,1.30186798,86.049,86.012,0.29621396]
[1771058454536,1.30186798,86.049,86.02,17.3956612]
[1771058455555,1.30186798,86.047,86.02,17.3956612]
[1771058455755,1.30186798,86.047,86.02,17.68961166]
[1771058456063,1.30186798,86.047,86.021,0.29169917]
[1771058456541,1.30186798,86.047,86.022,11.62493315]
[1771058457252,1.30186798,86.045,86.021,0.29169917]
[1771058457563,1.30186798,86.045,86.014,0.28947278]
[1771058457741,1.30186798,86.045,86.02,17.3956612]
[1771058459839,1.30186798,86.043,86.019,0.2872731]
[1771058460148,1.30186798,86.048,86.021,0.28295049]
[1771058461539,11.62061583,86.054,86.031,0.27875627]
[1771058461946,1.25121757,86.057,86.031,0.27875627]
[1771058463758,1.25121757,86.057,86.024,0.27462924]
[1771058464149,1.25121757,86.055,86.021,11.62506829]
[1771058464350,1.25121757,86.055,86.021,11.89768495]
[1771058464552,1.25121757,86.055,86.022,0.27261666]
[1771058467662,11.61966512,86.061,86.041,0.26667979]
[1771058468171,1.25121757,86.06,86.034,0.26475184]
[1771058471869,1.25121757,86.065,86.041,0.25907867]
[1771058472468,1.25121757,86.065,86.035,0.25724681]
[1771058472661,1.25121757,86.065,86.03,17.46578397]
[1771058472967,1.25121757,86.065,86.031,0.25724681]
[1771058473644,1.25121757,86.065,86.041,0.25541998]
[1771058474048,1.25121757,86.063,86.04,5.84006239]
[1771058475062,1.25121757,86.063,86.034,0.25361711]
[1771058475464,1.25121757,86.063,86.04,5.84006239]
[1771058475661,1.25121757,86.073,86.05,5.84006239]
[1771058475866,1.25121757,86.073,86.051,0.25183589]
[1771058476174,11.61818012,86.072,86.051,0.25183589]
[1771058476473,12.86939769,86.072,86.051,0.25183589]
[1771058476768,11.61818012,86.072,86.051,0.25183589]
[1771058476973,1.25121757,86.093,86.061,0.24832221]
[1771058477165,11.61534619,86.093,86.08,5.84006239]
[1771058477367,1.25121757,86.101,86.08,5.84006239]
[1771058477368,103.5,86.135,86.081,0.24832221]
[1771058477553,1.25121757,86.114,86.091,0.24832221]
[1771058477758,1.25121757,86.121,86.1,5.84006239]
[1771058477958,1.25121757,86.12,86.1,5.84006239]
[1771058478158,11.61183943,86.119,86.1,5.84006239]
[1771058478695,1.25121757,86.118,86.1,5.84006239]
[1771058479168,1.25121757,86.118,86.09,6.08492642]
[1771058479375,1.25121757,86.118,86.081,0.24486403]
[1771058479557,1.25121757,86.118,86.09,5.84006239]
[1771058480471,88.9321091,86.117,86.1,5.84006239]
[1771058480658,90.18332667,86.117,86.091,0.24316033]
[1771058482071,34.86596296,86.13,86.091,0.24316033]
[1771058482072,77.38,86.118,86.1,5.84006239]
[1771058483278,1.25121757,86.124,86.1,5.84006239]
[1771058483466,1.25121757,86.124,86.11,5.84006239]
[1771058483664,78.67121757,86.131,86.111,0.23820786]
[1771058483970,78.67121757,86.131,86.104,0.23659097]
[1771058483971,1.25121757,86.129,86.104,0.23659097]
[1771058484476,1.25121757,86.129,86.101,0.23659097]
[1771058484954,1.25121757,86.129,86.11,5.84006239]
[1771058485284,1.25121757,86.16,86.121,0.23499449]
[1771058485463,77.44,86.158,86.131,0.23499449]
[1771058485859,77.44,86.158,86.12,5.84006239]
[1771058485860,1.25121757,86.149,86.12,5.84006239]
[1771058486074,1.25121757,86.149,86.121,0.23341176]
[1771058486279,0.1,86.15,86.13,6.07347415]
[1771058486586,0.1,86.15,86.14,5.84006239]
[1771058486770,0.1,86.15,86.14,6.07347415]
[1771058487758,1.25121757,86.149,86.112,11.61278335]
[1771058488473,1.25121757,86.149,86.112,11.84309558]
[1771058488674,1.25121757,86.149,86.11,5.84006239]
[1771058488877,1.25121757,86.149,86.109,11.61318793]
[1771058489185,1.25121757,86.149,86.11,5.84006239]
[1771058490697,1.25121757,86.147,86.12,5.84006239]
[1771058490873,1.25121757,86.147,86.112,0.22728062]
[1771058491593,1.31045312,86.139,86.103,0.22431877]
[1771058491791,1.31045312,86.129,86.101,11.6141391]
[1771058491996,1.31045312,86.129,86.102,0.22285329]
[1771058492781,5.84006239,86.14,86.102,0.22285329]
[1771058492782,1.31045312,86.127,86.102,0.22285329]
[1771058494068,1.31045312,86.127,86.103,11.83399586]
[1771058494273,1.31045312,86.127,86.103,0.21999868]
[1771058495093,1.31045312,86.125,86.101,11.61426696]
[1771058495694,1.31045312,86.125,86.096,0.21859788]
[1771058495998,1.31045312,86.125,86.092,11.61545798]
[1771058496491,1.31045312,86.125,86.093,0.21721657]
[1771058497074,1.31045312,86.123,86.092,11.61545798]
[1771058497378,1.31045312,86.123,86.086,0.21585281]
[1771058497379,1.31045312,86.119,86.081,0.21585281]
[1771058497598,11.61116529,86.124,86.1,5.84006239]
[1771058497806,1.31045312,86.123,86.101,0.21585281]
[1771058498597,1.31045312,86.123,86.091,0.21450185]
[1771058498801,1.31045312,86.119,86.084,0.21450185]
[1771058499592,1.30960094,86.117,86.084,0.21450185]
[1771058499789,1.30960094,86.099,86.07,5.84006239]
[1771058500100,1.30960094,86.097,86.066,0.21186761]
[1771058500406,1.30960094,86.095,86.066,0.21186761]
[1771058500702,1.30960094,86.079,86.046,0.21056986]
[1771058500907,1.30960094,86.079,86.051,0.21056986]
[1771058501674,1.30960094,86.077,86.051,0.21056986]
[1771058502485,1.30960094,86.069,86.032,0.20802869]
[1771058502679,1.30960094,86.059,86.032,0.20802869]
[1771058503899,1.30960094,86.059,86.033,11.62344681]
[1771058504078,1.30960094,86.059,86.034,0.20553614]
[1771058504391,1.30960094,86.057,86.034,0.20553614]
[1771058504596,1.30960094,86.057,86.03,17.37504474]
[1771058504802,1.30960094,86.057,86.031,11.62371703]
[1771058504979,1.30960094,86.057,86.032,0.20431828]
[1771058505994,1.30960094,86.055,86.025,0.20431828]
[1771058506200,1.30960094,86.055,86.02,29.00023483]
[1771058506491,77.46,86.054,86.021,0.20311651]
[1771058506681,77.46,86.054,86.031,0.20311651]
[1771058507096,1.30960094,86.056,86.031,0.20311651]
[1771058507295,56.46,86.072,86.041,0.20192613]
[1771058507482,57.76960094,86.072,86.041,0.20192613]
[1771058507681,1.30960094,86.071,86.041,0.20192613]
[1771058507877,1.30960094,86.071,86.04,17.37504474]
[1771058507878,11.61710037,86.08,86.051,0.20074291]
[1771058508084,1.30960094,86.078,86.051,0.20074291]
[1771058509981,11.61750525,86.077,86.051,0.20074291]
[1771058510184,1.30960094,86.076,86.044,0.19841871]
[1771058510408,1.30960094,86.076,86.043,0.19841871]
[1771058511284,11.61777519,86.075,86.051,0.19727624]
[1771058511789,1.30960094,86.074,86.051,0.19727624]
[1771058515102,1.30960094,86.072,86.044,0.19281218]
[1771058515706,12.92764608,86.073,86.041,0.19281218]
[1771058516015,1.30960094,86.072,86.042,0.19281218]
[1771058516233,12.92764608,86.073,86.042,0.19281218]
[1771058516503,1.30960094,86.072,86.042,0.19281218]
[1771058517506,1.30960094,86.072,86.044,0.19066938]
[1771058521010,1.30960094,86.072,86.05,17.37504474]
[1771058521191,1.30960094,86.072,86.045,11.62182578]
[1771058521192,1.28623796,86.095,86.061,0.18549648]
[1771058522409,1.28623796,86.094,86.071,0.18449754]
[1771058522592,11.61507636,86.095,86.08,17.37504474]
[1771058522909,12.90131432,86.095,86.071,0.1835086]
[1771058523213,1.28623796,86.094,86.071,0.1835086]
[1771058525892,11.61534619,86.093,86.071,0.1835086]
[1771058526594,11.61534619,86.093,86.08,6.01493523]
[1771058526794,11.61534619,86.093,86.08,0.18059976]
[1771058527111,1.28623796,86.113,86.081,0.17965468]
[1771058527314,1.28623796,86.113,86.091,0.17965468]
[1771058528336,29.02984022,86.119,86.091,0.17965468]
[1771058528337,11.61278335,86.112,86.091,0.17965468]
[1771058528627,12.89902131,86.112,86.091,0.17965468]
[1771058529132,11.61278335,86.112,86.091,0.17965468]
[1771058529710,77.5,86.125,86.091,0.17965468]
[1771058529912,1.28623796,86.137,86.11,5.83433547]
[1771058530334,1.28623796,86.135,86.111,0.17689034]
[1771058530629,11.60956031,86.136,86.12,5.83433547]
[1771058531413,11.60806528,86.147,86.13,5.83433547]
[1771058532013,11.60806528,86.147,86.131,0.17510275]
[1771058532211,0.1,86.15,86.141,0.17510275]
[1771058533417,0.1,86.15,86.135,11.60964856]
[1771058533903,0.1,86.15,86.14,5.83433547]
[1771058534933,0.1,86.15,86.14,5.8257397]
[1771058535427,0.1,86.15,86.132,0.17246019]
[1771058536335,0.1,86.15,86.111,11.61291821]
[1771058536336,1.28623796,86.149,86.111,11.61291821]
[1771058536627,1.28623796,86.147,86.12,5.8257397]
[1771058537129,1.28623796,86.147,86.112,0.17076069]
[1771058537626,1.28623796,86.147,86.118,0.17076069]
[1771058538526,1.28623796,86.145,86.111,11.78284755]
[1771058539530,1.28623796,86.139,86.111,0.16992934]
[1771058541232,11.60846953,86.144,86.113,0.16750862]
[1771058541635,1.28623796,86.149,86.121,0.16750862]
[1771058544536,1.28623796,86.147,86.121,0.16750862]
[1771058546338,1.28623796,86.129,86.1,5.8257397]
[1771058546521,1.28623796,86.129,86.101,0.16362008]
[1771058546840,1.28623796,86.129,86.11,5.8257397]
[1771058547149,5.8257397,86.14,86.121,0.16286184]
[1771058547150,1.28623796,86.14,86.121,0.16286184]
[1771058548654,1.28623796,86.138,86.102,0.16212533]
[1771058548823,1.28623796,86.138,86.101,11.61424399]
[1771058549324,1.28623796,86.129,86.102,0.16139753]
[1771058549522,1.28623796,86.129,86.094,11.77649605]
[1771058550544,1.28623796,86.127,86.095,0.1606971]
[1771058551324,77.9,86.126,86.095,0.1606971]
[1771058551650,1.29721899,86.125,86.095,0.1606971]
[1771058551845,1.29721899,86.125,86.09,17.44148169]
[1771058552149,1.29721899,86.125,86.091,0.15591376]
[1771058552526,1.29721899,86.125,86.101,0.15591376]
[1771058552731,1.29721899,86.123,86.101,0.15591376]
[1771058554343,1.29721899,86.123,86.095,11.76777712]
[1771058554548,1.29721899,86.121,86.096,0.15282972]
[1771058555039,1.29721899,86.121,86.08,29.042704]
[1771058555040,1.29721899,86.119,86.088,0.15130748]
[1771058555245,1.29721899,86.119,86.091,0.15130748]
[1771058556951,11.61197426,86.118,86.091,0.15130748]
[1771058557932,1.29721899,86.117,86.091,0.15130748]
[1771058558159,1.29721899,86.115,86.091,0.15130748]
[1771058558325,5.8257397,86.11,86.091,0.15130748]
[1771058558525,1.29721899,86.115,86.084,0.14683153]
[1771058558729,11.61224395,86.116,86.091,0.14683153]
[1771058560346,1.25721318,86.119,86.091,0.14683153]
[1771058561347,1.25721318,86.119,86.081,0.14109442]
[1771058561831,1.25721318,86.119,86.091,0.14109442]
[1771058563557,1.25721318,86.119,86.092,0.13832958]
[1771058565533,1.25721318,86.119,86.1,5.961384]
[1771058565936,1.25721318,86.119,86.1,0.1356443]
[1771058566338,1.25721318,86.133,86.102,0.13432078]
[1771058566533,1.25721318,86.129,86.092,0.13432078]
[1771058567453,1.25721318,86.119,86.086,0.13301382]
[1771058567650,5.8257397,86.12,86.086,0.13301382]
[1771058567651,1.25721318,86.117,86.086,0.13301382]
[1771058567839,1.25721318,86.109,86.073,0.13301382]
[1771058568039,1.25721318,86.108,86.075,0.13172145]
[1771058569350,1.25721318,86.108,86.07,5.8257397]
[1771058569351,1.25721318,86.114,86.091,0.13042968]
[1771058569554,11.61183943,86.119,86.091,0.13042968]
[1771058569758,1.25721318,86.118,86.091,0.13042968]
[1771058572842,1.25721318,86.116,86.091,0.13042968]
[1771058573745,1.25721318,86.116,86.092,0.12543122]
[1771058575154,1.25721318,86.122,86.092,0.12543122]
[1771058575354,1.25721318,86.122,86.099,0.12301393]
[1771058578565,1.25721318,86.12,86.099,0.12301393]
[1771058578761,1.25721318,86.12,86.09,5.8257397]
[1771058578956,1.25721318,86.12,86.091,0.11951882]
[1771058579160,1.25721318,86.12,86.085,11.61629415]
[1771058579361,1.25721318,86.119,86.086,0.11838252]
[1771058580861,1.25721318,86.117,86.081,11.61696541]
[1771058581066,1.25721318,86.117,86.082,0.11616062]
[1771058581261,78.18,86.116,86.1,5.8257397]
[1771058581474,78.18,86.12,86.101,0.11506446]
[1771058581683,1.24452017,86.119,86.101,0.11506446]
[1771058581972,1.24452017,86.125,86.101,0.11506446]
[1771058583353,1.24452017,86.123,86.1,5.8257397]
[1771058584352,1.24452017,86.123,86.08,0.11184645]
[1771058584553,1.24452017,86.109,86.08,0.11184645]
[1771058584752,1.24452017,86.107,86.08,0.11184645]
[1771058584976,5.8257397,86.09,86.06,0.11080431]
[1771058585178,1.24452017,86.089,86.06,0.11080431]
[1771058585376,5.8257397,86.09,86.05,5.8257397]
[1771058585377,1.24452017,86.087,86.051,0.11080431]
[1771058585677,1.24452017,86.085,86.051,0.11080431]
[1771058585877,1.24452017,86.079,86.045,0.11080431]
[1771058586165,5.8257397,86.07,86.045,0.11080431]
[1771058586464,1.24452017,86.069,86.045,0.11080431]
[1771058587071,1.24452017,86.067,86.038,0.10876093]
[1771058587457,1.24452017,86.067,86.041,0.10876093]
[1771058587855,1.24452017,86.067,86.033,0.10876093]
[1771058588071,1.24452017,86.049,86.026,0.10775848]
[1771058588369,78.16,86.049,86.026,0.10775848]
[1771058588567,1.24452017,86.055,86.027,0.10775848]
[1771058588769,1.24452017,86.055,86.003,0.10775848]
[1771058589064,1.24452017,86.039,86.002,0.10775848]
[1771058589261,1.24452017,86.039,86.011,0.10677148]
[1771058589767,1.24452017,86.038,86.011,0.10677148]
[1771058590066,1.24452017,86.045,86.011,0.10677148]
[1771058591648,12.86642911,86.045,86.011,11.73319135]
[1771058591869,1.24452017,86.044,86.012,0.1048372]
[1771058592068,5.8257397,86.04,86.012,0.1048372]
[1771058592253,1.24452017,86.039,86.012,0.1048372]
[1771058594667,1.24452017,86.045,86.012,0.1048372]
[1771058595271,1.24452017,86.045,86.02,5.8427314]
[1771058595574,78.14,86.049,86.031,0.10107532]
[1771058596962,1.24452017,86.048,86.022,0.09923635]
[1771058601374,1.24452017,86.048,86.017,0.09573854]
[1771058601678,1.24452017,86.048,86.021,0.09573854]
[1771058602677,1.24452017,86.046,86.021,0.09573854]
[1771058602882,1.24452017,86.046,86.02,5.8427314]
[1771058603385,1.24452017,86.044,86.02,5.8427314]
[1771058603567,1.24452017,86.044,86.018,0.094047]
[1771058604174,1.24452017,86.044,86.02,5.93594766]
[1771058604480,1.24452017,86.044,86.02,0.09321626]
[1771058604678,1.24452017,86.042,86.011,0.09321626]
[1771058605371,1.24452017,86.042,86.021,0.09239414]
[1771058605568,1.24452017,86.044,86.021,0.09239414]
[1771058607972,78.44,86.043,86.031,0.0899565]
[1771058608883,1.24452017,86.051,86.031,0.0899565]
[1771058609093,1.24452017,86.072,86.041,0.08917171]
[1771058609269,1.24452017,86.072,86.051,0.08917171]